Cogmind - Beta 14 --- EXPLORER MODE // 2024.11.04 @ 19:50:08 Player: mrjoebobfred Result: Destroyed by S-43 Plague with Heavy Machine Gun Performance ------------- Evolutions (7) 3500 Regions Visited (16) 3200 Robots Destroyed (283) 1415 Value Destroyed (12950) 12950 Prototype IDs (68) 1360 Alien Tech Used (0) 0 Bonus (5337) 5337 TOTAL SCORE: 27762 Bonus ------- Devolution -1500 High Alert Combat Kills 1579 Follower Combat Kills 1578 Entered Garrisons 200 Used RIF Installer 500 Network Hubs Disabled 200 Registered with UFD 300 Built Enhanced Grunts 300 Met R17 at Cetus 500 Met R17 at Research 2000 Friendly Fire -320 Cogmind --------- Core Integrity 0/800 Matter 300/300 Energy 53/100 System Corruption 0% Temperature Cool (0) Movement Core (50) Location -3/Research Parts ------- > --- POWER (3) -------- (None) > --- PROPULSION (5) --- (None) > --- UTILITY (3) ------ (None) > --- WEAPON (3) ------- Plasma Lance > --- INVENTORY (5) ---- Deep Structural Scanner Advanced Thermal Shield Experimental EM Disruption Field Mapping Drone Bay (3/3) Advanced Remote Datajack Peak State ------------ > --- POWER ------------ Cold Fusion Reactor Quantum Reactor Improved Quantum Reactor > --- PROPULSION ------- Improved Heavy Treads Improved Heavy Treads Centrium Heavy Treads > --- UTILITY ---------- Advanced Cooling System High-capacity Storage Unit Advanced Kinecellerator Centrium Medium Armor Plating > --- WEAPON ----------- Hypervelocity Coil Gun Helical Railgun Helical Railgun Helical Railgun > --- INVENTORY -------- Mini Fusion Reactor Quantum Reactor Deep Structural Scanner Experimental Core Analyzer Experimental Core Analyzer Advanced Thermal Shield Experimental EM Disruption Field Improved Hardlight Generator Improved System Shield Relay Coupler [NC] Relay Coupler [Swarmer] Relay Coupler [Proto] Relay Coupler [Proto] Mapping Drone Bay 01-MTF's Shockpuncher KN-7UR's Autopenetrator Compact HERF Cannon Hypervelocity Coil Gun Impact Mace DRS Beacon [Rating: 142] Favorites ----------- Power Cold Fusion Reactor Engine Cooled Ion Engine Power Core Hybrid Fission Core Reactor Cold Fusion Reactor Propulsion Improved Treads Treads Improved Treads Hover Unit Combat Linear Gravjet Utility High-capacity Storage Unit Device Improved Hardlight Generator Storage High-capacity Storage Unit Processor Terrain Scan Processor Hackware Hacking Suite Protection Medium Armor Plating Weapon Improved Assault Rifle Energy Gun 01-MTF's Shockpuncher Energy Cannon Compact HERF Cannon Ballistic Gun Improved Assault Rifle Special Weapon Improved Remote Datajack Impact Weapon Impact Mace Piercing Weapon Plasma Lance Special Melee Weapon Datajack Build | -11 -10 -9 -9 -9 -9 -6 -6 -6 -6 -6 -6 -5 -5 -5 -4 -3 ------- Run | Yrd Mat Mat Sto Rec Scr Fac Ext Cet Arc Hub Gar Fac Upp Upp Fac Res Slots Evolved -6 | . 1 -1 . . . -3 . . . . . -1 . . -1 -1 Power . | . . . . . . . . . . . . . . . . . Propulsion . | . 1 . . . . . . . . . . . . . -1 . Utility -3 | . . . . . . -2 . . . . . -1 . . . . Weapon -3 | . . -1 . . . -1 . . . . . . . . . -1 Parts Attached 294 | 13 14 21 12 1 23 85 18 11 . 11 24 33 5 . 4 19 Power 25 | 2 2 2 1 . 3 8 1 2 . . 1 3 . . . . Engine 13 | 2 1 2 1 . 3 4 . . . . . . . . . . Core 4 | . 1 . . . . 2 1 . . . . . . . . . Reactor 8 | . . . . . . 2 . 2 . . 1 3 . . . . Propulsion 37 | 2 7 . . . 6 10 2 1 . . 2 2 . . 1 4 Treads 34 | 2 7 . . . 6 10 2 1 . . 2 2 . . 1 1 Leg . | . . . . . . . . . . . . . . . . . Wheel . | . . . . . . . . . . . . . . . . . Hover 3 | . . . . . . . . . . . . . . . . 3 Flight . | . . . . . . . . . . . . . . . . . Utility 159 | 6 5 12 6 . 9 51 12 2 . 11 16 16 4 . 2 7 Device 121 | 2 2 9 6 . 7 42 9 1 . 9 12 12 4 . . 6 Storage 3 | 1 1 . . . 1 . . . . . . . . . . . Processor 3 | 1 1 . . . . . . . . . 1 . . . . . Hackware 14 | . . . . . . 6 . . . 1 1 3 . . 2 1 Protection 18 | 2 1 3 . . 1 3 3 1 . 1 2 1 . . . . Artifact . | . . . . . . . . . . . . . . . . . Weapon 73 | 3 . 7 5 1 5 16 3 6 . . 5 12 1 . 1 8 Energy Gun 6 | . . 1 . . . 2 1 1 . . . . . . . 1 Energy Cannon 2 | . . . . . . . . . . . . 1 . . 1 . Ballistic Gun 42 | 3 . 6 1 . 4 11 1 3 . . 4 7 1 . . 1 Ballistic Cannon . | . . . . . . . . . . . . . . . . . Launcher . | . . . . . . . . . . . . . . . . . Special Weapon 13 | . . . 3 . 1 2 . 1 . . . 4 . . . 2 Impact Weapon 4 | . . . . . . 1 1 1 . . 1 . . . . . Slashing Weapon . | . . . . . . . . . . . . . . . . . Piercing Weapon 4 | . . . . . . . . . . . . . . . . 4 Special Melee Weapon 2 | . . . 1 1 . . . . . . . . . . . . Unidentified Prototypes 15 | . . 1 . . . 5 . 3 . 2 4 . . . . . Corrupted Parts 1 | . . . . . . . . . . . . 1 . . . . System Corruption 1 | . . . . . . . . . . . . 1 . . . . Parts Lost 14 | . . . . . . . . . . . . 3 . . 1 10 Power 3 | . . . . . . . . . . . . 1 . . . 2 Propulsion 3 | . . . . . . . . . . . . . . . . 3 Utility 4 | . . . . . . . . . . . . 1 . . . 3 Weapon 4 | . . . . . . . . . . . . 1 . . 1 2 Highest Loss Streak 10 | . . . . . . . . . . . . 1 . . 1 10 To Critical Strikes 2 | . . . . . . . . . . . . . . . 1 1 Average Slot Usage (%) 91 | . 77 97 99 100 91 99 98 96 94 94 87 80 80 81 79 63 Engine 6 | . 13 10 10 15 13 7 . . . . . . . . . . Core 3 | . . 5 4 . . 6 9 4 . . . . . . . . Reactor 6 | . . . . . . 2 5 11 17 17 17 17 18 18 20 14 Treads 27 | . 20 30 30 30 28 34 35 33 29 29 22 17 18 18 12 3 Device 10 | . 9 10 11 15 14 11 12 10 11 10 14 4 11 12 1 3 Storage 4 | . 4 5 5 5 4 5 5 5 5 5 5 6 6 6 6 1 Hackware 2 | . . . . . . 4 1 . . 4 1 6 . . 11 13 Protection 3 | . 8 9 10 10 8 . 2 5 5 . . 1 . . . . Ballistic Gun 20 | . 14 22 21 20 18 20 22 21 23 23 22 19 24 25 24 2 Special Weapon 1 | . . . 2 4 . 1 . . . . . 3 . . . 5 Peak Build Rating 142 | 15 28 47 56 56 65 91 99 122 123 125 142 136 124 121 105 97 Average Rating 78 | 10 20 40 50 55 53 75 92 108 122 120 123 124 121 121 102 66 On Entrance 81 | . 15 28 47 56 55 53 88 99 122 123 120 136 124 121 105 97 Naked Turns 102 | . . . . . 102 . . . . . . . . . . . Heaviest Build 134 | 32 70 95 102 102 105 97 103 134 134 134 132 126 117 115 115 102 Greatest Support 230 | 40 132 132 132 132 132 167 150 150 140 140 230 230 230 230 150 150 Greatest Overweight (x) 4 | . 1 . . . . . . . . . 1 . . . 1 4 Average Overweight (x) . | . . . . . . . . . . . . . . . . . Largest Inventory Capacity 20 | 10 20 20 20 20 20 20 20 20 20 20 20 20 20 20 20 20 Average Capacity 19 | 8 17 20 20 20 19 20 20 20 20 20 20 20 20 20 20 7 Most Carried 20 | . 7 17 20 20 20 20 17 20 20 20 20 20 18 17 17 17 Average Carried 16 | . 5 11 18 19 18 18 16 18 19 19 17 18 17 17 16 6 Final Capacity 20 | 10 20 20 20 20 20 20 20 20 20 20 20 20 20 20 20 5 Final Carried 20 | . 7 17 20 20 20 16 17 20 20 20 20 18 17 17 16 5 Class Distribution -------------------- 42% | Hacker-Tank 25% | Scavenger-Tank 12% | Machinist-Tank 9% | Commander-Tank 3% | Hacker-Skirmisher Dominant Class ---------------- Hacker-Skirmisher | -10/Materials Hacker-Tank | -9/Materials Hacker-Tank | -9/Storage Commander-Tank | -9/Recycling Hacker-Tank | -9/Scraptown Hacker-Tank | -6/Factory Machinist-Tank | -6/Extension Machinist-Tank | -6/Cetus Scavenger-Tank | -6/Archives Scavenger-Tank | -6/Hub_04(d) Scavenger-Tank | -6/Garrison Scavenger-Tank | -5/Factory Commander-Tank | -5/Upper Caves Commander-Tank | -5/Upper Caves Commander-Gunner | -4/Factory Hacker-Mutant | -3/Research Resources | -11 -10 -9 -9 -9 -9 -6 -6 -6 -6 -6 -6 -5 -5 -5 -4 -3 ----------- Run | Yrd Mat Mat Sto Rec Scr Fac Ext Cet Arc Hub Gar Fac Upp Upp Fac Res Matter Collected 10835 | 302 388 760 656 227 10 2794 920 318 292 659 1562 1447 122 . 161 217 Remotely 146 | 18 128 . . . . . . . . . . . . . . . Salvage Created 15820 | 104 274 1138 1127 391 . 3577 1357 441 434 1114 2297 2715 126 . 441 284 Parts 844 | 10 29 65 78 18 . 168 66 17 39 64 110 150 5 . 16 9 Haulers Intercepted 8 | . . 3 1 . . 3 . . . . . 1 . . . . Recyclers Shooed 8 | . 3 . . . . 5 . . . . . . . . . . Parts Field Recycled . | . . . . . . . . . . . . . . . . . Retrieved Matter . | . . . . . . . . . . . . . . . . . Parts Self-Destructed . | . . . . . . . . . . . . . . . . . Prevented . | . . . . . . . . . . . . . . . . . Kills | -11 -10 -9 -9 -9 -9 -6 -6 -6 -6 -6 -6 -5 -5 -5 -4 -3 ------- Run | Yrd Mat Mat Sto Rec Scr Fac Ext Cet Arc Hub Gar Fac Upp Upp Fac Res Combat Hostiles Destroyed 218 | . 7 21 22 7 . 50 12 6 1 14 32 32 2 . 6 6 Melee 6 | . . . . . . . . . . . . . . . . 6 Guns 205 | . 7 21 22 7 . 50 11 6 1 14 32 29 2 . 3 . Cannons 5 | . . . . . . . . . . . . 3 . . 2 . Classes Destroyed 19 | 2 4 2 2 3 . 3 2 . . . 1 . . . . . Worker 6 | . . . . . . 3 1 . . 2 . . . . . . Builder 7 | . 3 . 1 . . 1 . . . 1 . 1 . . . . Tunneler 3 | 2 . . . . . 1 . . . . . . . . . . Hauler 8 | . . 3 1 . . 3 . . . . . 1 . . . . Recycler 10 | 1 . . 1 . . 4 2 . . . . 2 . . . . Carrier 1 | . . . . . . . 1 . . . . . . . . . Operator 13 | . . . 1 . . 1 1 . 9 1 . . . . . . Watcher 16 | . 3 2 1 . . 2 3 . . 1 . 4 . . . . Swarmer 26 | . 5 2 3 . . 6 3 . . . 3 . . . . 4 Grunt 83 | . 2 10 9 . . 20 . 1 . 9 17 11 2 . 2 . Brawler 5 | . . . 1 . . 2 . . . . . 2 . . . . Duelist 2 | . . . . . . . . . . . 2 . . . . . Protector 1 | . . . . 1 . . . . . . . . . . . . Sentry 44 | . . 9 9 2 . 6 4 . 1 2 6 2 . . 3 . Demolisher 1 | . . . . 1 . . . . . . . . . . . . Hunter 14 | . . . . . . 3 3 . . . . 6 . . . 2 Programmer 27 | . . . . 2 . 12 . . . . 1 11 . . 1 . Behemoth 4 | . . . . . . 1 2 . . . 1 . . . . . Cetus Guard 5 | . . . . . . . . 5 . . . . . . . . Lightning 3 | . . . . . . . . . . 3 . . . . . . Executioner 2 | . . . . . . . . . . . 2 . . . . . Butcher 1 | . . . . . . . 1 . . . . . . . . . Best Kill Streak 7 | 3 4 3 5 2 . 5 5 3 4 7 5 7 2 . 2 6 Combat Bots Only 6 | . 2 3 5 2 . 4 5 3 1 6 5 6 2 . 2 6 Max Kills in Single Turn 4 | 2 2 2 2 1 . 3 2 1 1 4 2 2 1 . 1 1 Gunslinging 2 | . 1 1 1 . . 2 . . . 1 1 1 . . . . Exploded . | . . . . . . . . . . . . . . . . . Melee 1 | . . . . . . . . . . . . . . . . 1 Uniques/NPCs Destroyed 1 | . . . . 1 . . . . . . . . . . . . KN-7UR (-9/Recycling) Combat | -11 -10 -9 -9 -9 -9 -6 -6 -6 -6 -6 -6 -5 -5 -5 -4 -3 -------- Run | Yrd Mat Mat Sto Rec Scr Fac Ext Cet Arc Hub Gar Fac Upp Upp Fac Res Hostile Shots Fired 1855 | . 13 54 40 48 . 387 194 19 6 147 297 306 21 . 17 306 Missed 521 | . 1 9 14 6 . 135 59 4 2 33 81 55 5 . 3 114 Damage Taken 7363 | . 60 192 120 279 . 962 591 141 52 373 270 2080 5 . 220 2018 Core 1220 | . . 12 5 25 . 55 30 . . 34 11 241 . . . 807 Absorbed by Shields 4313 | . 4 141 100 106 . 1035 588 117 18 423 913 480 94 . . 294 Reduced by Siege Mode 149 | . . . . . . . . . . . 16 133 . . . . Redirected to Shielding 2 | . 2 . . . . . . . . . . . . . . . Ignored by Resistances 11321 | . 44 213 137 244 . 2181 930 182 40 1282 1647 2458 204 . 130 1629 Regen/Repaired (Parts) 620 | . . . . . 382 . 77 . . . . 161 . . . . Core Remaining (%) 91 | 100 100 . . . 94 . . . . . 83 . . 69 100 . Volleys Fired 621 | 3 23 40 39 17 . 136 55 14 35 33 97 94 4 . 16 15 Largest 5 | 3 3 5 5 4 . 4 4 4 4 4 4 4 4 . 4 1 Hottest 149 | 60 60 115 115 92 . 128 128 135 140 140 140 149 133 . 133 75 Shots Fired 1938 | 9 69 178 173 67 . 458 177 35 78 103 293 230 16 . 37 15 Gun 1905 | 9 69 178 173 67 . 456 177 33 78 103 293 218 16 . 28 7 Cannon 15 | . . . . . . . . . . . . 6 . . 9 . Launcher . | . . . . . . . . . . . . . . . . . Special 18 | . . . . . . 2 . 2 . . . 6 . . . 8 Kinetic 1891 | 9 69 178 173 67 . 456 169 32 78 103 293 218 16 . 28 2 Thermal 5 | . . . . . . . . . . . . . . . . 5 Explosive . | . . . . . . . . . . . . . . . . . Electromagnetic 24 | . . . . . . . 8 1 . . . 6 . . 9 . Robot Hit Streak 70 | 4 17 44 33 52 . 70 60 30 18 20 54 32 10 . 29 7 Robot Miss Streak 4 | 1 3 1 2 1 . 3 1 1 4 2 2 2 2 . 1 3 Penetration Max 2 | . . . . . . 1 1 1 2 1 1 2 1 . 1 . Secondary Targets 48 | . 1 4 6 1 . 11 4 2 1 4 6 6 1 . 1 . Max Gunslinging Chain 2 | . 1 1 2 1 . 2 1 1 1 1 2 1 1 . 1 . Shots Hit Robots 1530 | 6 43 130 117 60 5 373 146 30 60 79 220 188 11 . 35 27 Core Hits 640 | 4 18 45 42 20 . 160 53 16 31 40 87 99 5 . 12 8 Critical Kills 84 | . . . . 2 . 4 8 4 8 9 21 25 . . 3 . Critical Parts Destroyed 122 | . . . . . . 8 17 7 12 16 44 15 . . 3 . Critical Strikes 226 | . . . . 2 . 12 32 12 21 26 71 44 . . 6 . Destroy 225 | . . . . 2 . 12 32 12 21 26 71 43 . . 6 . Corrupt 1 | . . . . . . . . . . . . 1 . . . . Melee Attacks 38 | . . . 1 1 5 . 1 3 . . 10 . . . . 17 Impact 14 | . . . . . . . 1 3 . . 10 . . . . . Slashing . | . . . . . . . . . . . . . . . . . Piercing 17 | . . . . . . . . . . . . . . . . 17 Sneak Attacks 7 | . . . 1 1 5 . . . . . . . . . . . Combat Hostiles . | . . . . . . . . . . . . . . . . . Follow-up Attacks 3 | . . . . . . . . . . . . . . . . 3 Damage Inflicted 27963 | 93 552 1993 1963 850 . 7900 2085 410 683 1939 3752 3497 291 . 992 963 Guns 25976 | 93 551 1978 1943 838 . 7848 1987 410 683 1521 3752 3246 291 . 709 126 Cannons 519 | . . . . . . . . . . . . 236 . . 283 . Explosions 465 | . . . . . . . 66 . . 399 . . . . . . Melee 820 | . . . . . . . . . . . . . . . . 820 Ramming 183 | . 1 15 20 12 . 52 32 . . 19 . 15 . . . 17 Kinetic 25672 | 93 551 1978 1943 838 . 7848 1769 410 683 1521 3752 3246 291 . 709 40 Thermal 152 | . . . . . . . 66 . . . . . . . . 86 Explosive . | . . . . . . . . . . . . . . . . . Electromagnetic 1136 | . . . . . . . 218 . . 399 . 236 . . 283 . Impact . | . . . . . . . . . . . . . . . . . Slashing . | . . . . . . . . . . . . . . . . . Piercing 820 | . . . . . . . . . . . . . . . . 820 Highest Corruption 4 | . . . . 1 . 3 . . . 3 1 4 . . . . Average Corruption 1 | . . . . 1 . 1 . . . 2 1 2 . . . . Corruption Purged 12 | . . . . . . 4 . . . 3 1 4 . . . . Corruption Blocked . | . . . . . . . . . . . . . . . . . Effects 39 | . . . . 10 . 19 . . . 2 1 7 . . . . Message Errors 9 | . . . . 2 . 4 . . . 1 . 2 . . . . Matter Fused 11 | . . . . 3 . 8 . . . . . . . . . . Heat Flow Errors 4 | . . . . . . 1 . . . . . 3 . . . . Energy Discharges 4 | . . . . 2 . 1 . . . 1 . . . . . . Data Loss (minor) 5 | . . . . 1 . 3 . . . . . 1 . . . . Data Loss (major) 3 | . . . . 1 . . . . . . 1 1 . . . . Misfires 1 | . . . . . . 1 . . . . . . . . . . Alerts 1 | . . . . . . 1 . . . . . . . . . . Weapon Failures 1 | . . . . 1 . . . . . . . . . . . . Overload Shots . | . . . . . . . . . . . . . . . . . Overflow Damage 112 | . . . . . . . 17 . . 15 . . . . . 80 Projectiles . | . . . . . . . . . . . . . . . . . Explosions 15 | . . . . . . . . . . 15 . . . . . . Melee 97 | . . . . . . . 17 . . . . . . . . 80 Knockbacks 3 | . . 1 . . . 1 1 . . . . . . . . . Impact 3 | . . 1 . . . 1 1 . . . . . . . . . Kinetic . | . . . . . . . . . . . . . . . . . Secondary . | . . . . . . . . . . . . . . . . . Self-Inflicted Damage 41 | . . . . . . . . . . 41 . . . . . . Shots 1 | . . . . . . . . . . 1 . . . . . . Rammed 20 | . 1 2 1 1 . 6 1 . . 2 . 1 . . . 5 Targets Rammed 23 | . 1 2 2 1 . 8 1 . . 2 . 1 . . . 5 Kicked . | . . . . . . . . . . . . . . . . . Crushed 3 | . . . 1 . . 2 . . . . . . . . . . Highest Temperature 539 | 78 156 339 315 198 . 424 424 328 302 348 320 539 121 8 341 234 Average Temperature 106 | 33 43 98 99 59 . 114 122 112 97 137 121 121 16 5 142 59 Received Heat Transfer 2395 | . 26 126 78 155 . 184 131 6 . 177 69 748 8 . 48 639 Effects 56 | . . 1 1 . . 14 3 . 5 2 1 28 . . 1 . Shutdowns 5 | . . . . . . 1 . . . . . 4 . . . . Energy Bleed 12 | . . 1 . . . 5 . . . 1 1 4 . . . . Interference 25 | . . . 1 . . 6 2 . 5 1 . 9 . . 1 . Matter Decay 4 | . . . . . . 1 . . . . . 3 . . . . Short Circuit 5 | . . . . . . 1 1 . . . . 3 . . . . Damage (minor) 2 | . . . . . . . . . . . . 2 . . . . Damage (major) 2 | . . . . . . . . . . . . 2 . . . . Damage (core) 1 | . . . . . . . . . . . . 1 . . . . Siege Activations 11 | . . . . . . . . . . . 3 7 . . 1 . Total Turns 112 | . . . . . . . . . . . 47 62 . . 3 . Longest Duration 27 | . . . . . . . . . . . 27 17 . . 3 . Robots Corrupted 2 | . . . . . . . 2 . . . . . . . . . Combat Hostiles 1 | . . . . . . . 1 . . . . . . . . . Parts Fried 11 | . . . . . . . 3 . . 3 . 2 . . 3 . Impact Corruptions 1 | . . . . . . . 1 . . . . . . . . . Robots Melted . | . . . . . . . . . . . . . . . . . Combat Hostiles . | . . . . . . . . . . . . . . . . . Parts Melted 1 | . . . . . . . 1 . . . . . . . . . Heat Transferred 250 | . . . . . . . 50 . . . . . . . . 200 Parts Sabotaged . | . . . . . . . . . . . . . . . . . Parts Stolen . | . . . . . . . . . . . . . . . . . Parts Stripped . | . . . . . . . . . . . . . . . . . Power Chain Reactions 1 | . . . . . . . 1 . . . . . . . . . Alert | -11 -10 -9 -9 -9 -9 -6 -6 -6 -6 -6 -6 -5 -5 -5 -4 -3 ------- Run | Yrd Mat Mat Sto Rec Scr Fac Ext Cet Arc Hub Gar Fac Upp Upp Fac Res Peak Influence 1781 | 15 145 315 508 202 . 275 172 271 136 698 1781 838 . . 239 203 Initial 694 | . 7 31 40 78 . . 10 1 . 32 214 694 . . 52 74 Average 257 | 5 56 82 314 67 . 67 48 113 98 435 991 567 . . 137 95 Maximum Alert Level 5 | . . 1 2 1 . 1 . 1 . 2 5 3 . . 1 1 Low Security (%) 66 | 100 100 88 7 98 . 93 100 85 100 16 . 10 . . 88 92 Level 1 11 | . . 11 71 1 . 6 . 14 . 38 11 14 . . 11 7 Level 2 9 | . . . 21 . . . . . . 45 19 43 . . . . Level 3 6 | . . . . . . . . . . . 25 31 . . . . Level 4 2 | . . . . . . . . . . . 26 . . . . . Level 5 1 | . . . . . . . . . . . 16 . . . . . High Security . | . . . . . . . . . . . . . . . . . Max Security . | . . . . . . . . . . . . . . . . . Squads Dispatched 52 | . 1 4 6 . . 21 1 1 . 3 . 11 . . 1 3 Investigation 20 | . 1 4 1 . . 6 1 1 . 1 . 4 . . . 1 Extermination 14 | . . . . . . 9 . . . . . 5 . . . . Reinforcement 11 | . . . 1 . . 5 . . . 1 . 2 . . . 2 Assault . | . . . . . . . . . . . . . . . . . Garrison 7 | . . . 4 . . 1 . . . 1 . . . . 1 . Intercept . | . . . . . . . . . . . . . . . . . Searches Triggered . | . . . . . . . . . . . . . . . . . Construction Impeded 1 | . . . . . . 1 . . . . . . . . . . Haulers Reinforced 3 | . . . . . . 1 . . . . . 1 . . . 1 Active Scanning Responses . | . . . . . . . . . . . . . . . . . Cargo Convoy Interrupts . | . . . . . . . . . . . . . . . . . Stealth | -11 -10 -9 -9 -9 -9 -6 -6 -6 -6 -6 -6 -5 -5 -5 -4 -3 --------- Run | Yrd Mat Mat Sto Rec Scr Fac Ext Cet Arc Hub Gar Fac Upp Upp Fac Res Distress Signals 20 | . . 3 1 . . 3 2 2 . 1 . 3 . . . 5 Communications Jammed . | . . . . . . . . . . . . . . . . . Distress Signals . | . . . . . . . . . . . . . . . . . Times Spotted 357 | . 14 24 27 10 . 68 19 13 20 24 44 47 5 . 9 33 Peak Tracking Total 9 | . 2 3 5 4 . 4 4 5 2 8 5 6 4 . 5 9 Tactical Retreats 21 | . 2 . . . . . 1 . . 2 10 1 1 . . 4 Traps | -11 -10 -9 -9 -9 -9 -6 -6 -6 -6 -6 -6 -5 -5 -5 -4 -3 ------- Run | Yrd Mat Mat Sto Rec Scr Fac Ext Cet Arc Hub Gar Fac Upp Upp Fac Res Traps Triggered 10 | . . . . . . 3 . . . . 4 2 . . . 1 Indirectly . | . . . . . . . . . . . . . . . . . Trap Hack Attempts . | . . . . . . . . . . . . . . . . . Triggered . | . . . . . . . . . . . . . . . . . Disarmed 2 | . . . . . . . . . . . . . . . 2 . Reprogrammed 34 | . 16 12 6 . . . . . . . . . . . . . Reused 6 | . 6 . . . . . . . . . . . . . . . Traps Extracted . | . . . . . . . . . . . . . . . . . Installed . | . . . . . . . . . . . . . . . . . Triggered 10 | . 6 . . . . . . . . . . . . . . 4 Machines | -11 -10 -9 -9 -9 -9 -6 -6 -6 -6 -6 -6 -5 -5 -5 -4 -3 ---------- Run | Yrd Mat Mat Sto Rec Scr Fac Ext Cet Arc Hub Gar Fac Upp Upp Fac Res Machines Disabled 37 | . . . 5 . . 4 3 1 1 15 2 6 . . . . Max in Single Turn 11 | . . . 1 . . 1 1 1 . 11 1 1 . . . . Garrison Access 2 | . . . 1 . . 1 . . . . . . . . . . Garrison Relay 1 | . . . . . . . . . . . 1 . . . . . Network Hub 1 | . . . . . . . . . . 1 . . . . . . Machines Repaired . | . . . . . . . . . . . . . . . . . Machines Dismantled 5 | . . . 5 . . . . . . . . . . . . . Machines Sabotaged . | . . . . . . . . . . . . . . . . . Overloaded Fab Kills . | . . . . . . . . . . . . . . . . . Hacking | -11 -10 -9 -9 -9 -9 -6 -6 -6 -6 -6 -6 -5 -5 -5 -4 -3 --------- Run | Yrd Mat Mat Sto Rec Scr Fac Ext Cet Arc Hub Gar Fac Upp Upp Fac Res Machines Accessed 124 | . 10 16 10 12 3 25 12 1 . 5 3 18 . . 2 7 Terminals 82 | . 8 12 8 5 . 13 10 1 . 4 3 12 . . 2 4 Fabricators 11 | . . . . . . 5 . . . . . 4 . . . 2 Repair Stations 1 | . . . . . . . 1 . . . . . . . . . Recycling Units 16 | . 2 2 1 7 . 3 1 . . . . . . . . . Scanalyzers 7 | . . 2 . . . 3 . . . . . 1 . . . 1 Garrison Access 4 | . . . 1 . . 1 . . . 1 . 1 . . . . Total Hacks 509 | . 36 76 29 43 25 76 43 2 . 14 12 106 . . 10 37 Successful 360 | . 29 66 17 32 25 55 28 . . 10 . 72 . . 6 20 Failed 149 | . 7 10 12 11 . 21 15 2 . 4 12 34 . . 4 17 Catastrophic 17 | . . . . . . 3 1 1 . . 4 8 . . . . Database Lockouts . | . . . . . . . . . . . . . . . . . Manual 262 | . 23 50 14 32 . 32 22 1 . 10 6 42 . . 7 23 Terminals 321 | . 30 53 24 15 . 43 34 2 . 13 12 59 . . 10 26 Fabricators 53 | . . . . . . 15 . . . . . 29 . . . 9 Repair Stations 7 | . . . . . . . 7 . . . . . . . . . Recycling Units 49 | . 6 5 3 28 . 5 2 . . . . . . . . . Scanalyzers 46 | . . 18 . . . 12 . . . . . 14 . . . 2 Garrison Access 8 | . . . 2 . . 1 . . . 1 . 4 . . . . Terminal Hacks 153 | . 16 31 8 2 25 18 20 . . 5 . 16 . . 3 9 Record 21 | . . . . . 21 . . . . . . . . . . . Part Schematic 6 | . . . 1 . . 2 1 . . . . 2 . . . . Robot Schematic 6 | . . . . 1 . 2 . . . . . . . . . 3 Robot Analysis 24 | . 5 3 . . 4 2 8 . . . . 2 . . . . Prototype ID Bank 31 | . 3 20 . 1 . . 2 . . 1 . 2 . . 1 1 Open Door 9 | . . . 4 . . 1 4 . . . . . . . . . Level Access Points 1 | . . . . . . . . . . . . . . . . 1 Machine Index 2 | . . . . . . . . . . . . . . . 1 1 Terminal Index 4 | . . 1 1 . . 1 . . . . . 1 . . . . Fabricator Index 2 | . . . . . . 1 . . . . . 1 . . . . Garrison Index 1 | . . . . . . . . . . . . 1 . . . . Unreport Threat 1 | . . . . . . 1 . . . . . . . . . . Locate Traps 22 | . 3 3 . . . 5 4 . . 2 . 3 . . . 2 Disarm Traps 1 | . . . . . . . . . . . . . . . 1 . Reprogram Traps 7 | . 4 2 1 . . . . . . . . . . . . . Recall Investigation 1 | . . . . . . 1 . . . . . . . . . . Hauler Manifests 3 | . . 1 1 . . . . . . . . 1 . . . . Zone Layout 11 | . 1 1 . . . 2 1 . . 2 . 3 . . . 1 Fabricator Hacks 36 | . . . . . . 12 . . . . . 21 . . . 3 Load Schematic 17 | . . . . . . 5 . . . . . 11 . . . 1 Build 19 | . . . . . . 7 . . . . . 10 . . . 2 Repair Station Hacks 4 | . . . . . . . 4 . . . . . . . . . Scan Component 2 | . . . . . . . 2 . . . . . . . . . Repair 2 | . . . . . . . 2 . . . . . . . . . Recycling Unit Hacks 15 | . 2 1 1 7 . 3 1 . . . . . . . . . Retrieve Matter 1 | . . . . . . 1 . . . . . . . . . . Retrieve Components 14 | . 2 1 1 7 . 2 1 . . . . . . . . . Scanalyzer 41 | . . 16 . . . 10 . . . . . 13 . . . 2 Insert Component 17 | . . 7 . . . 4 . . . . . 5 . . . 1 Analyze 24 | . . 9 . . . 6 . . . . . 8 . . . 1 Garrison Access Hacks 3 | . . . 1 . . 1 . . . 1 . . . . . . Unlock Access 1 | . . . . . . . . . . 1 . . . . . . Seal Access 2 | . . . 1 . . 1 . . . . . . . . . . Unauthorized Hacks 108 | . 11 18 7 23 . 11 3 . . 4 . 22 . . 3 6 Terminals 66 | . 7 14 6 6 . 8 3 . . 4 . 11 . . 3 4 Track 1 | . . . . . . . . . . 1 . . . . . . Assimilate 4 | . . 1 . . . . . . . . . 3 . . . . Botnet 16 | . 2 2 1 1 . 2 2 . . 1 . 2 . . 1 2 Disrupt 4 | . . . . . . . . . . 1 . 1 . . . 2 Operators 6 | . . 1 1 . . 1 1 . . 1 . 1 . . . . Skim 35 | . 5 10 4 5 . 5 . . . . . 4 . . 2 . Fabricators 11 | . . . . . . 2 . . . . . 7 . . . 2 Prioritize 2 | . . . . . . . . . . . . 2 . . . . Liberate 8 | . . . . . . 2 . . . . . 4 . . . 2 Haulers 1 | . . . . . . . . . . . . 1 . . . . Repair Stations . | . . . . . . . . . . . . . . . . . Recycling Units 25 | . 4 2 1 17 . 1 . . . . . . . . . . Reject 8 | . 2 . . 5 . 1 . . . . . . . . . . Recyclers 1 | . . . . 1 . . . . . . . . . . . . Mask 6 | . 1 . . 5 . . . . . . . . . . . . Tunnel 10 | . 1 2 1 6 . . . . . . . . . . . . Scanalyzers 3 | . . 2 . . . . . . . . . 1 . . . . Extract 3 | . . 2 . . . . . . . . . 1 . . . . Garrison Access 3 | . . . . . . . . . . . . 3 . . . . Restock 1 | . . . . . . . . . . . . 1 . . . . Reprogram 1 | . . . . . . . . . . . . 1 . . . . Watchers 1 | . . . . . . . . . . . . 1 . . . . Data Cores Recovered 1 | . . . . . . . 1 . . . . . . . . . Used 1 | . . . . . . . 1 . . . . . . . . . Hacking Detections 101 | . 9 15 7 9 . 21 9 2 . 4 3 13 . . 2 7 Full Trace Events 11 | . . . . . . 4 1 1 . 1 3 1 . . . . Feedback Events 1 | . . . . . . . . . . . 1 . . . . . Corruption 1 | . . . . . . . . . . . 1 . . . . . Feedback Blocked . | . . . . . . . . . . . . . . . . . Robot Schematics Acquired 6 | . . . . 1 . 2 . . . . . . . . . 3 Robots Built 20 | . . . . . . 2 . . . . . 15 . . . 3 Authchips . | . . . . . . . . . . . . . . . . . Time 652 | . . . . . . 116 . . . . . 469 . . . 67 Total Robot Build Rating 78 | . . . . . . 6 . . . . . 60 . . . 12 Part Schematics Acquired 30 | . . 13 1 . . 6 1 . . . . 8 . . . 1 Parts Built 17 | . . . . . . 10 . . . . . 5 . . . 2 Authchips . | . . . . . . . . . . . . . . . . . Time 927 | . . . . . . 377 . . . . . 504 . . . 46 Total Part Build Rating 103 | . . . . . . 53 . . . . . 32 . . . 18 Parts Repaired 2 | . . . . . . . 2 . . . . . . . . . Time 60 | . . . . . . . 60 . . . . . . . . . Parts Recycled . | . . . . . . . . . . . . . . . . . Recycled Matter . | . . . . . . . . . . . . . . . . . Retrieved Matter 88 | . . . . . . 88 . . . . . . . . . . Retrieved Components 70 | . 9 9 10 20 . 12 10 . . . . . . . . . Parts Scanalyzed 16 | . . 7 . . . 4 . . . . . 4 . . . 1 Part Schematics Acquired 15 | . . 6 . . . 4 . . . . . 4 . . . 1 Parts Damaged 1 | . . . . . . 1 . . . . . . . . . . Bothacking | -11 -10 -9 -9 -9 -9 -6 -6 -6 -6 -6 -6 -5 -5 -5 -4 -3 ------------ Run | Yrd Mat Mat Sto Rec Scr Fac Ext Cet Arc Hub Gar Fac Upp Upp Fac Res Used RIF Installer 1 | . . . . . . . . . . . 1 . . . . . Robots Hacked 19 | . . . 1 1 4 . . 2 . . . 5 . . . 6 Non-combat 11 | . . . . . 1 . . . . . . 5 . . . 5 Combat 8 | . . . 1 1 3 . . 2 . . . . . . . 1 Robot Hacks Applied 20 | . . . 1 1 5 . . 2 . . . 5 . . . 6 parse_system 10 | . . . 1 1 5 . . 2 . . . . . . . 1 map_walls 1 | . . . . . . . . . . . . 1 . . . . map_earth 1 | . . . . . . . . . . . . . . . . 1 drop_inventory 1 | . . . . . . . . . . . . . . . . 1 reprogram_traps 1 | . . . . . . . . . . . . . . . . 1 map_route 3 | . . . . . . . . . . . . 2 . . . 1 formatsys_low 2 | . . . . . . . . . . . . 2 . . . . formatsys_high 1 | . . . . . . . . . . . . . . . . 1 Relay Couplers Released 7 | . . . . . . . . . . . 3 4 . . . . Machine Destruction 3 | . . . . . . . . . . . 3 . . . . . Programmers 4 | . . . . . . . . . . . . 4 . . . . Attached 2 | . . . . . . . . . . . . 1 . . . 1 Fabnet Peak Effective % . | . . . . . . . . . . . . . . . . . Robots Rewired 10 | . . . . 9 . . . . . . 1 . . . . . Allies Hacked 3 | . . . . . . . . . . . . 2 1 . . . Hacks Repelled . | . . . . . . . . . . . . . . . . . Allies | -11 -10 -9 -9 -9 -9 -6 -6 -6 -6 -6 -6 -5 -5 -5 -4 -3 -------- Run | Yrd Mat Mat Sto Rec Scr Fac Ext Cet Arc Hub Gar Fac Upp Upp Fac Res Total Allies 73 | . . 1 10 9 . 9 5 5 . . 1 27 . . . 6 Largest Group 13 | . . 1 10 7 1 4 5 9 6 3 1 13 12 10 10 4 Highest-Rated Group 723 | . . 10 88 125 30 116 268 723 492 281 116 279 230 190 190 128 Highest-Rated Ally 159 | . . 10 16 34 30 37 159 159 159 96 116 116 20 20 20 64 Total Orders 25 | . . . 9 3 10 . . . . . 2 1 . . . . STAY 1 | . . . . . . . . . . . 1 . . . . . ROAM 5 | . . . 1 . 4 . . . . . . . . . . . FOLLOW 3 | . . . . 2 . . . . . . 1 . . . . . GUARD 1 | . . . . 1 . . . . . . . . . . . . AID 1 | . . . . . . . . . . . . 1 . . . . EXPLORE 9 | . . . 4 . 5 . . . . . . . . . . . RETURN 5 | . . . 4 . 1 . . . . . . . . . . . Ally Attacks 328 | . . . 63 12 . 17 14 43 24 20 5 73 19 . 23 15 Total Damage 7436 | . . . 579 177 . 491 347 1158 778 591 276 1769 457 . 407 406 Kills 51 | . . . 11 2 . 3 3 7 3 3 5 8 3 . 2 1 Allies Corrupted 2 | . . . . . . 1 . . . 1 . . . . . . Allies Melted 2 | . . . . . . . . . . . . . . . 1 1 Intel | -11 -10 -9 -9 -9 -9 -6 -6 -6 -6 -6 -6 -5 -5 -5 -4 -3 ------- Run | Yrd Mat Mat Sto Rec Scr Fac Ext Cet Arc Hub Gar Fac Upp Upp Fac Res Robot Analysis Total 24 | . 5 3 . . 4 2 8 . . . . 2 . . . . Derelict Logs Recovered . | . . . . . . . . . . . . . . . . . Drone Launches 9 | . . . 5 . 4 . . . . . . . . . . . Drone Recoveries 9 | . . . 5 . 4 . . . . . . . . . . . Exploration | -11 -10 -9 -9 -9 -9 -6 -6 -6 -6 -6 -6 -5 -5 -5 -4 -3 ------------- Run | Yrd Mat Mat Sto Rec Scr Fac Ext Cet Arc Hub Gar Fac Upp Upp Fac Res Turns Passed 23432 | 164 1462 2203 1187 1157 2259 5329 2017 553 296 450 2249 2670 391 167 240 638 Spaces Moved 11735 | 86 791 1218 544 601 1473 2439 989 228 80 130 930 1211 205 82 94 634 Core 203 | 2 . . . . 199 . . . . . . . . . . 2 Treads 10963 | 84 791 1218 544 601 1274 2439 989 228 80 130 930 1211 205 82 94 63 Legs . | . . . . . . . . . . . . . . . . . Wheels . | . . . . . . . . . . . . . . . . . Hover 569 | . . . . . . . . . . . . . . . . 569 Flight . | . . . . . . . . . . . . . . . . . Fastest Speed 50 | 50 160 160 160 160 50 160 160 160 160 160 160 160 173 173 180 53 Average Speed 156 | 157 168 160 160 160 145 160 160 160 160 160 183 164 173 173 181 68 Slowest Speed 270 | 160 240 160 160 160 160 160 160 160 160 160 240 173 173 173 270 250 Overloaded Moves . | . . . . . . . . . . . . . . . . . Propulsion Burnouts . | . . . . . . . . . . . . . . . . . Robots Hopped . | . . . . . . . . . . . . . . . . . Cave-ins Triggered . | . . . . . . . . . . . . . . . . . Exploration Rate (%) 58 | 6 97 88 95 98 96 63 96 67 69 18 89 28 43 15 4 16 Regions Visited 16 Branch Regions 9 Pre-discovered Areas 22 | . 1 5 1 8 4 3 . . . . . . . . . . Known Exits Taken 15 | 1 1 1 1 1 1 1 1 1 1 1 . 1 1 1 1 . Unknown Exits Taken . | . . . . . . . . . . . . . . . . . Scrap Searched 9 | . . . . . 7 . . . . . . . 2 . . . Spaces Dug 16 | . . . . . . . . . . . 16 . . . . . Terrain Destroyed 274 | . . . . . . 5 5 . 2 167 25 49 12 . 9 . Melee 6 | . . . . . . . . . . . 6 . . . . . Projectile 99 | . . . . . . 5 1 . . 8 16 48 12 . 9 . AOE 158 | . . . . . . . . . . 158 . . . . . . Terrain Rammed . | . . . . . . . . . . . . . . . . . Walls Destroyed . | . . . . . . . . . . . . . . . . . Machines Disabled . | . . . . . . . . . . . . . . . . . Actions | -11 -10 -9 -9 -9 -9 -6 -6 -6 -6 -6 -6 -5 -5 -5 -4 -3 --------- Run | Yrd Mat Mat Sto Rec Scr Fac Ext Cet Arc Hub Gar Fac Upp Upp Fac Res Total 15261 | 101 862 1364 698 755 1587 3536 1290 384 179 292 1244 1695 230 107 136 801 Wait 2194 | . 21 60 35 89 54 805 220 119 55 111 143 337 16 26 22 81 Move 11720 | 85 790 1217 543 600 1472 2438 988 227 79 130 929 1210 204 81 93 634 Hop . | . . . . . . . . . . . . . . . . . Pick Up 114 | . 5 11 17 5 24 15 3 1 5 2 10 9 . . . 7 Fast Attach 124 | 13 13 14 3 . 18 33 4 6 . 1 8 5 . . 1 5 Attach 23 | . . 1 1 . 3 3 1 1 . 1 . 4 1 . 1 6 Detach 11 | . 2 . . . . 1 1 4 . 1 . . . . . 2 Swap 147 | . 1 6 8 1 2 49 13 4 . 9 16 24 4 . 2 8 Drop 152 | . 6 13 16 5 8 48 3 5 5 2 16 11 1 . 1 12 Fire 621 | 3 23 40 39 17 . 136 55 14 35 33 97 94 4 . 16 15 Melee 34 | . . . 1 1 5 . 1 3 . . 10 . . . . 13 Ram . | . . . . . . . . . . . . . . . . . Kick . | . . . . . . . . . . . . . . . . . Crush 23 | . 1 2 2 1 . 8 1 . . 2 . 1 . . . 5 Escape Stasis 17 | . . . . . . . . . . . 4 . . . . 13 Rewire 47 | . . . . 36 . . . . . . 11 . . . . . Trap . | . . . . . . . . . . . . . . . . . Miscellaneous 34 | . . . 33 . 1 . . . . . . . . . . . Route ------- -11/Scrapyard -10/Materials (discovered 5 exits: *Mat x3 / *Min / *Sub) -9/Materials (discovered 6 exits: *Mat x3 / *Min / *Sto x2) -9/Storage (discovered 2 exits: *Mat / *Rec) -9/Recycling (discovered 2 exits: *Fac / *Scr) -9/Scraptown (discovered 2 exits: *Fac x2) -6/Factory (discovered 6 exits: Fac x2 / *Low x2 / *Ext x2) -6/Extension (discovered 3 exits: *Fac x2 / *Cet) -6/Cetus (discovered 2 exits: *Fac / *Arc) -6/Archives -6/Hub_04(d) (discovered 2 exits: *Fac / Gar) -6/Garrison (discovered 3 exits: *Fac x3) -5/Factory (discovered 4 exits: *Fac x2 / *Upp x2) -5/Upper Caves -5/Upper Caves (discovered 2 exits: *Fac / War) -4/Factory (discovered 4 exits: *Res x4) -3/Research (discovered 5 exits: Res x3 / Tes x2) History --------- Turn | Location | Event 51 | -11/Scrapyard | Identified exit to Materials 51 | -11/Scrapyard | Discovered exit to Materials (range 15) 165 | -11/Scrapyard | Entered Materials 165 | -10/Materials | Devolved, losing -1 slots: Propulsion x1 242 | -10/Materials | Identified exit to Materials 242 | -10/Materials | Discovered exit to Materials (range 15) 466 | -10/Materials | Identified exit to Mines 466 | -10/Materials | Discovered exit to Mines (range 9) 591 | -10/Materials | Build established: Hacker-Skirmisher 780 | -10/Materials | Discovered exit to Materials (range 8) 863 | -10/Materials | Learned Storage emergency access door positions 917 | -10/Materials | Learned 4 Subcaves zone layouts 960 | -10/Materials | Learned Storage trap positions 994 | -10/Materials | Learned Storage stockpile data 1036 | -10/Materials | Learned location of 1 exit from Storage 1043 | -10/Materials | Learned 2 Mines zone layouts 1059 | -10/Materials | Identified exit to Subcaves 1086 | -10/Materials | Learned location of 2 exits from Mines 1166 | -10/Materials | Learned location of 1 exit from Storage 1467 | -10/Materials | Build established: Hacker-Tank 1627 | -10/Materials | Entered another Materials area 1627 | -9/Materials | Devolved, losing 1 slot: Weapon x-1 1628 | -9/Materials | Identified exit to Materials 1631 | -9/Materials | Identified exit to Storage 1631 | -9/Materials | Discovered exit to Storage (range 12) 2100 | -9/Materials | Learned 4 Recycling zone layouts 2112 | -9/Materials | Identified exit to Mines 2125 | -9/Materials | Learned location of 1 exit from Recycling 2146 | -9/Materials | Learned 4 Recycling zone layouts 2311 | -9/Materials | Discovered exit to Storage (range 3) 2564 | -9/Materials | Discovered exit to Materials (range 4) 2957 | -9/Materials | Build established: Scavenger-Tank 3162 | -9/Materials | Loaded intel: 12 trap records 3234 | -9/Materials | Loaded intel: 18 interactive machine locations 3238 | -9/Materials | Discovered exit to Materials (range 16) 3298 | -9/Materials | Learned Storage trap positions 3353 | -9/Materials | Learned location of Mines (-9) 3400 | -9/Materials | Learned Materials trap positions 3488 | -9/Materials | Learned location of 2 exits from Materials 3546 | -9/Materials | Learned Storage trap positions 3615 | -9/Materials | Learned Materials emergency access door positions 3830 | -9/Materials | Entered Storage 3831 | -9/Storage | Identified exit to Recycling 3833 | -9/Storage | Loaded intel: 15 trap records 3877 | -9/Storage | Build established: Hacker-Tank 3898 | -9/Storage | Garrison activated, responded to threat 3981 | -9/Storage | Assisted by bots powering up and referring to "LRC-V3" 4271 | -9/Storage | Build established: Commander-Tank 4279 | -9/Storage | Garrison activated, responded to threat 4452 | -9/Storage | Lost 5 allies 4527 | -9/Storage | Met 01-MTF 4732 | -9/Storage | Found 01-MTF's Shockpuncher 4751 | -9/Storage | Build established: Hacker-Tank 5011 | -9/Storage | Used back door to open Recycling access 5017 | -9/Storage | Entered Recycling 5017 | -9/Recycling | Accompanied by 2 allies (01-MTF) 5018 | -9/Recycling | Identified exit to Scraptown 5492 | -9/Recycling | Identified exit to Factory 5492 | -9/Recycling | Discovered exit to Factory (range 16) 5734 | -9/Recycling | Build established: Commander-Tank 5797 | -9/Recycling | Learned Storage trap positions 5867 | -9/Recycling | Learned Storage emergency access door positions 5887 | -9/Recycling | Learned location of 2 exits from Materials 5899 | -9/Recycling | Learned Storage trap positions 5901 | -9/Recycling | Learned Materials recycling unit intel 5931 | -9/Recycling | Learned Materials trap positions 5932 | -9/Recycling | Scanned before Scraplab entrance 5962 | -9/Recycling | Learned 2 Materials zone layouts 6101 | -9/Recycling | Destroyed KN-7UR 6124 | -9/Recycling | Lost 6 allies 6136 | -9/Recycling | Found KN-7UR's Autopenetrator 6152 | -9/Recycling | Entered Scraplab 6174 | -9/Recycling | Entered Scraptown 6174 | -9/Scraptown | Accompanied by 1 ally 6174 | -9/Scraptown | System corruption cleaned by C-Scrubber 6279 | -9/Scraptown | Heard Great Nut preacher, LISTEN AND RECITE! 6347 | -9/Scraptown | Identified exit to Factory 6347 | -9/Scraptown | Discovered exit to Factory (range 57) 6361 | -9/Scraptown | Visited Bundlers 6387 | -9/Scraptown | Build established: Hacker-Tank 6483 | -9/Scraptown | Visited UFD Registry 6483 | -9/Scraptown | Registered with UFD as "Autonade" 6512 | -9/Scraptown | Visited Shadow of the Wyrm 6539 | -9/Scraptown | Discovered exit to Factory (range 62) 6556 | -9/Scraptown | Visited Assassins FH 6604 | -9/Scraptown | Visited Spacefarers 6912 | -9/Scraptown | Visited Cartography Club 6953 | -9/Scraptown | Visited Scrapoid Pod Storage 7001 | -9/Scraptown | Visited LU-1G1's Boring Crew 7081 | -9/Scraptown | Visited Junk Repository 7174 | -9/Scraptown | Visited Scrap Suit Storage 7219 | -9/Scraptown | Visited Curators Association 7273 | -9/Scraptown | Visited Derelict Rescue Squad 7283 | -9/Scraptown | Found DRS Beacon 7316 | -9/Scraptown | Visited Chapter 10 7427 | -9/Scraptown | Visited Analyses Database 7563 | -9/Scraptown | Visited CR-KLE's Repair Center 7574 | -9/Scraptown | CR-KLE repaired 13 parts 7844 | -9/Scraptown | Released all parts (19) 7897 | -9/Scraptown | Learned location of Proximity Caves (-5) 7897 | -9/Scraptown | Learned location of Armory (-3) 7897 | -9/Scraptown | Learned 8 Factory zone layouts 7897 | -9/Scraptown | Learned 8 Research zone layouts 7897 | -9/Scraptown | Learned 4 Access zone layouts 7897 | -9/Scraptown | Learned 8 Access zone layouts 7897 | -9/Scraptown | Learned 4 Storage zone layouts 7897 | -9/Scraptown | Learned 8 Upper Caves zone layouts 7897 | -9/Scraptown | Learned 4 Hub_04(d) zone layouts 7897 | -9/Scraptown | Learned Factory emergency access door positions 7897 | -9/Scraptown | Learned location of 2 exits from Factory 7897 | -9/Scraptown | Learned location of 2 exits from Research 7897 | -9/Scraptown | Learned location of 2 exits from Upper Caves 7917 | -9/Scraptown | Found Deep Structural Scanner 8433 | -9/Scraptown | Entered Factory 8433 | -6/Factory | Accompanied by 1 ally 8433 | -6/Factory | Devolved, losing 3 slots: Utility x-2, Weapon x-1 8434 | -6/Factory | Identified exit to Extension 8435 | -6/Factory | Identified exit to Factory 8436 | -6/Factory | Identified exit to Lower Caves 9467 | -6/Factory | Fabricated Com. HERF Cannon (x1) 9854 | -6/Factory | Fabricated H-55 Commando? 10043 | -6/Factory | Fabricated Imp. Medium Treads (x2) 10727 | -6/Factory | Build established: Scavenger-Tank 11144 | -6/Factory | Fabricated Cold Fusion Reactor (x1) 11190 | -6/Factory | Fabricated System Restoration Module? 11389 | -6/Factory | Build established: Hacker-Tank 11789 | -6/Factory | Garrison activated, responded to threat 11868 | -6/Factory | Spotted B-75 Beast 11934 | -6/Factory | Destroyed B-75 Beast 12132 | -6/Factory | Learned location of 2 exits from Factory 12237 | -6/Factory | Fabricated Imp. Medium Treads (x2) 12271 | -6/Factory | Learned 4 Extension zone layouts 12282 | -6/Factory | Learned Hub_04(d) security intel 12569 | -6/Factory | Build established: Machinist-Tank 13360 | -6/Factory | Build established: Hacker-Tank 13590 | -6/Factory | Fabricated Hyp. Coil Gun (x2) 13762 | -6/Factory | Entered Extension 14241 | -6/Extension | Spotted B-75 Beast 14321 | -6/Extension | Destroyed B-75 Beast 14361 | -6/Extension | Build established: Machinist-Tank 14395 | -6/Extension | Spotted B-75 Beast 14437 | -6/Extension | Destroyed B-75 Beast 14530 | -6/Extension | Rescued a captive Derelict 14650 | -6/Extension | Rescued a captive Derelict 14718 | -6/Extension | Repaired Broken Coil Gun 14743 | -6/Extension | Repaired Hyb. Fission Core? 14937 | -6/Extension | Rescued A7 14967 | -6/Extension | Rescued a captive Derelict 14967 | -6/Extension | Rescued a captive Derelict 15469 | -6/Extension | Disrupted transfer network 15746 | -6/Extension | Identified exit to Cetus 15746 | -6/Extension | Discovered exit to Cetus (range 16) 15779 | -6/Extension | Entered Cetus 15779 | -6/Cetus | Accompanied by 4 allies (A7) 15784 | -6/Cetus | Acquired a Cetus Manufacturing Module code from A7 15801 | -6/Cetus | Spotted Cetus Guard 15801 | -6/Cetus | Spotted Cetus Guard 15803 | -6/Cetus | Spotted Cetus Guard 15803 | -6/Cetus | Spotted Cetus Guard 15805 | -6/Cetus | Destroyed Cetus Guard 15805 | -6/Cetus | Allies destroyed Cetus Guard 15816 | -6/Cetus | Allies destroyed Cetus Guard 15816 | -6/Cetus | Destroyed Cetus Guard 15923 | -6/Cetus | Started Cetus Manufacturing Module 15948 | -6/Cetus | Manufactured an Enhanced Grunt 15973 | -6/Cetus | Manufactured an Enhanced Grunt 15998 | -6/Cetus | Manufactured an Enhanced Grunt 16023 | -6/Cetus | Manufactured an Enhanced Grunt 16048 | -6/Cetus | Manufactured an Enhanced Grunt 16067 | -6/Cetus | Identified exit to Archives 16067 | -6/Cetus | Discovered exit to Archives (range 15) 16097 | -6/Cetus | Spotted Cetus Guard 16097 | -6/Cetus | Spotted Cetus Guard 16098 | -6/Cetus | Destroyed Cetus Guard 16099 | -6/Cetus | Spotted Cetus Guard 16100 | -6/Cetus | Spotted Cetus Guard 16106 | -6/Cetus | Destroyed Cetus Guard 16114 | -6/Cetus | Allies destroyed Cetus Guard 16119 | -6/Cetus | Destroyed Cetus Guard 16145 | -6/Cetus | Met Revision 17 16332 | -6/Cetus | Entered Archives 16332 | -6/Archives | Accompanied by 6 allies (A7) 16398 | -6/Archives | Identified exit to Hub_04(d) 16398 | -6/Archives | Discovered exit to Hub_04(d) (range 16) 16451 | -6/Archives | Build established: Scavenger-Tank 16628 | -6/Archives | Entered Hub_04(d) 16628 | -6/Hub_04(d) | Accompanied by 3 allies 16697 | -6/Hub_04(d) | Garrison activated, responded to threat 16717 | -6/Hub_04(d) | Disrupted transfer network 16823 | -6/Hub_04(d) | Network Hub disabled 16824 | -6/Hub_04(d) | Spotted Lightning 16825 | -6/Hub_04(d) | Spotted Lightning 16832 | -6/Hub_04(d) | Destroyed Lightning 16833 | -6/Hub_04(d) | Spotted Lightning 16851 | -6/Hub_04(d) | Destroyed Lightning 16869 | -6/Hub_04(d) | Lost 3 allies 16882 | -6/Hub_04(d) | Destroyed Lightning 16918 | -6/Hub_04(d) | Found Prototype Device 16918 | -6/Hub_04(d) | Identified Exp. Phase Shifter 16932 | -6/Hub_04(d) | Found Prototype Device 16933 | -6/Hub_04(d) | Identified Exp. EM Disruption Field 16993 | -6/Hub_04(d) | Identified exit to Garrison 17078 | -6/Hub_04(d) | Entered Garrison 17128 | -6/Garrison | Triggered checkpoint 17312 | -6/Garrison | Spotted B-75 Beast 17424 | -6/Garrison | Triggered checkpoint 17558 | -6/Garrison | Discovered exit to Factory (range 11) 17618 | -6/Garrison | Triggered checkpoint 17796 | -6/Garrison | Triggered checkpoint 17832 | -6/Garrison | Triggered checkpoint 17950 | -6/Garrison | Discovered exit to Factory (range 10) 18004 | -6/Garrison | Triggered checkpoint 18178 | -6/Garrison | Installed Relay Interface Framework 18292 | -6/Garrison | Destroyed B-75 Beast 18406 | -6/Garrison | Discovered exit to Factory (range 8) 18428 | -6/Garrison | Triggered checkpoint 18437 | -6/Garrison | Garrison Relay disabled 18532 | -6/Garrison | Rewired B-86 Titan 19040 | -6/Garrison | Spotted Executioner 19111 | -6/Garrison | Found Relay Coupler [Proto] 19117 | -6/Garrison | Found Relay Coupler [Proto] 19193 | -6/Garrison | Spotted Executioner 19197 | -6/Garrison | Destroyed Executioner 19211 | -6/Garrison | Destroyed Executioner 19222 | -6/Garrison | Found Prototype Processor 19222 | -6/Garrison | Identified Exp. Targeting Computer 19236 | -6/Garrison | Found Prototype Device 19236 | -6/Garrison | Identified Adv. Kinecellerator 19250 | -6/Garrison | Found Prototype Processor 19254 | -6/Garrison | Found Prototype Processor 19327 | -6/Garrison | Entered Factory 19327 | -5/Factory | Accompanied by 1 ally 19327 | -5/Factory | Devolved, losing 1 slot: Utility x-1 19328 | -5/Factory | Identified exit to Upper Caves 19329 | -5/Factory | Identified exit to Factory 20179 | -5/Factory | P-70 Sage assimilated allied Smith 6a 20324 | -5/Factory | Fabricated B-48 Gladiator? 20522 | -5/Factory | Discovered exit to Upper Caves (range 16) 20683 | -5/Factory | Spotted B-75 Beast 20751 | -5/Factory | Allies destroyed B-75 Beast 20839 | -5/Factory | P-70 Sage assimilated allied Gladiator 6a 20862 | -5/Factory | Fabricated Imp. Heavy Siege Treads? 21086 | -5/Factory | Fabricated Imp. Heavy Siege Treads (x1) 21220 | -5/Factory | Fabricated B-48 Gladiator (x3) 21267 | -5/Factory | Identified Exp. Core Analyzer (x2) 21277 | -5/Factory | Build established: Hacker-Tank 21296 | -5/Factory | Fabricated Cold Fusion Reactor (x1) 21381 | -5/Factory | Fabricated Cold Fusion Reactor (x1) 21468 | -5/Factory | Fabricated Enh. Coil Gun (x1) 21515 | -5/Factory | Lost 5 allies 21566 | -5/Factory | Fabricated B-48 Gladiator? 21832 | -5/Factory | Fabricated B-48 Gladiator (x3) 21866 | -5/Factory | Build established: Commander-Tank 21899 | -5/Factory | Fabricated B-48 Gladiator? 21997 | -5/Factory | Entered Upper Caves 21997 | -5/Upper Caves | Accompanied by 12 allies 21998 | -5/Upper Caves | Identified exit to Upper Caves 22388 | -5/Upper Caves | Entered another Upper Caves area 22388 | -5/Upper Caves | Accompanied by 10 allies 22389 | -5/Upper Caves | Identified exit to Warlord 22514 | -5/Upper Caves | Discovered exit to Factory (range 7) 22555 | -5/Upper Caves | Entered Factory 22555 | -4/Factory | Accompanied by 10 allies 22555 | -4/Factory | Devolved, losing 1 slot: Propulsion x-1 22556 | -4/Factory | Identified exit to Research 22728 | -4/Factory | Garrison activated, responded to threat 22795 | -4/Factory | Entered Research 22795 | -3/Research | Accompanied by 4 allies 22795 | -3/Research | Devolved, losing 1 slot: Weapon x-1 22796 | -3/Research | Identified exit to Testing 22822 | -3/Research | Lost 5 allies 22888 | -3/Research | Fabricated Cmb. Linear Gravjet (x2) 22941 | -3/Research | Lost 4 allies 22995 | -3/Research | Revision forces began assault on 0b10 22999 | -3/Research | Fabricated B-48 Gladiator? 23146 | -3/Research | Met up with Revision 17++ 23198 | -3/Research | Identified exit to Research 23210 | -3/Research | Build established: Hacker-Mutant 23235 | -3/Research | Spotted B-86 Titan 23393 | -3/Research | Core integrity fell below 50% 23425 | -3/Research | Core integrity fell below 20% 23433 | -3/Research | Destroyed by S-43 Plague with Heavy Machine Gun Last Messages --------------- 23419_ Penetrated by Slug. 23419_ Cmb. Linear Gravjet destroyed. 23421_ A-15 Conveyor heat damages core (-9). 23421_ Y-72 Warden destroyed. 23422_ The unstable cave ceiling collapses. 23424_ A-15 Conveyor heat damages Imp. Ion Engine, Lrg. Storage Unit, Med. Treads. 23426_ A-15 Conveyor heat short circuits Med. Treads. 23426_ U-05 Engineer builds a Wall. 23427_ A-15 Conveyor heat short circuits Backup Power VII. 23427_ Enh. Force Lance destroyed. 23428_ Plasma Lance destroyed. 23430_ Relay Coupler [NC] destroyed. 23431_ The unstable cave ceiling collapses. 23431_ Lgt. Angular Momentum Engine crushed. 23431_ S-43 Plague destroyed. 23432_ Revision 17++: "Eliminate all resistance!" Map ----- +----------------------------------------------------+ | ???????????????????????????????????# #? | | ???????????????????????????????????# #? | | ???????????????????????????????????#######+######? | | ???????????????????????????????????????# ###### | | ?????????????????????????????????????????????????? | | ????? ????????????????????????????????????????? | | ??? ????????????????????????????????????????? | | ??? #???????????????????????????????????????? | | ?? #???????????????????????????????????????? | | ??? #???????????????????????????????????????? | | ??? #???????????????????????????????????????? | | ??""" #???????????????????????????????????????? | | ??""" #???????????????????????????????????????? | | """ +???????????????????????????????????????? | | """ #????????????+#####+#???????????????????? | | """ #??????????? ! ???????????????????? | | """ ########???? #??????????????????? | | """ #???? #??????????????????? | | #????? #??????????????????? | | #?????? #??????????????????? | | #??????? #?????????????#????? | | ######+##### #????????? #??????????? #????? | | """"" # #?????????? #?????????? #????? | | ""T"" # ##;##########;######+### #####? | | # A V!%=%=% gs !s A ? | | # =%!%*[@= = g %= | | # ! !% %[g | | *|| # % % %= [%g % | | *| ####+###### # ;##;;########???? | | *| ## ] ## | | ## # ! ## | | #" #! !! ## | | ##" # !! ## | | ##" # ## | | ####/########T ## | | ##?# #??????#" ######### | | ##?# #??????#" # """ """ # #?????# | | ##?# #??????#" # """ """ # #????## | | ##?# #??????# | # """ """ ##########????# | | ##?# #??????# # #?????????????## | | ### #?????# [ # #??????????????# | | +?????# ! #############???????????????# | | ### #?????########???????????????????????????# | | #######????????????????????????????????????????# | | ##?????????????????????????????????????????????# | | ##?????????????????????????????????????????????### | | ##???????????????????????????????????????????????? | | ##???????????????????????????????????????????????? | | #????????????????????????????????????????????????? | | #????????????????????????????????????????????????? | +----------------------------------------------------+ Best States ------------- Heat Dissipation 51 Coolant Potential 65 Energy Generation 57 Energy Capacity 1890 Matter Stores 300 Matter Capacity 300 Sight Range 16 Terrain Scan Range 16 Terrain Scan Density 85 Base Temperature (-) 150 Armor Coverage 450 Resistance: KI 35 Resistance: TH 65 Resistance: EX 35 Resistance: EM 100 Resistance: I 35 Resistance: S 35 Resistance: P 35 Weapon Shielding 33 Phase Shifting 20 Evasion (%) 54 Targeting Accuracy 5 Recoil Reduction 6 Offensive Hacking 40 Defensive Hacking 12 Relay Coupler Types 1 Relay Coupler Value 36 Authchip Count 2 Item Schematics ----------------- Med. Storage Unit | -9/Materials | Scanalyzed Imp. Grenade Launcher | -9/Materials | Scanalyzed Imp. Light Cannon | -9/Materials | Extracted Cooling System | -9/Materials | Extracted Hardlight Generator | -9/Materials | Scanalyzed Plasma Cutter | -9/Materials | Scanalyzed Transport Network Coupler | -9/Materials | Scanalyzed Datajack | -9/Materials | Scanalyzed Lgt. Armor Plating | -9/Materials | Extracted Cld. Ion Engine | -9/Materials | Extracted Rnf. Ion Engine | -9/Materials | Extracted Lrg. Matter Pod | -9/Materials | Extracted Terrain Scanner | -9/Materials | Extracted System Restoration Module | -9/Storage | Hacked Centrium Light Armor Plating | -6/Factory | Scanalyzed Imp. Medium Treads | -6/Factory | Hacked Cold Fusion Reactor | -6/Factory | Scanalyzed Thermal Defense Suite | -6/Factory | Scanalyzed Gravity Neutralizer | -6/Factory | Scanalyzed Hyp. Coil Gun | -6/Factory | Hacked Adv. Thermal Shield | -6/Extension | Hacked Imp. Heavy Siege Treads | -5/Factory | Hacked Adv. Hardlight Generator | -5/Factory | Hacked Centrium Medium Armor Plating | -5/Factory | Scanalyzed Exp. EM Disruption Field | -5/Factory | Scanalyzed Adv. Hacking Suite | -5/Factory | Scanalyzed Enh. Coil Gun | -5/Factory | Scanalyzed Adv. Field Recycling Unit | -5/Factory | Extracted Imp. Melee Analysis Suite | -5/Factory | Extracted Mapping Drone Bay | -3/Research | Scanalyzed Robot Schematics ------------------ S-10 Pest | -9/Recycling | Hacked G-50 Soldier | -6/Factory | Hacked B-48 Gladiator | -6/Factory | Hacked M-36 Artificer | -3/Research | Hacked O-32 Director | -3/Research | Hacked X-82 Rainmaker | -3/Research | Hacked Fabricated ------------ Com. HERF Cannon | x1 | -6/Factory | Preloaded H-55 Commando | x2 | -6/Factory | Preloaded Imp. Medium Treads | x2 | -6/Factory Cold Fusion Reactor | x1 | -6/Factory System Restoration Module | x2 | -6/Factory Imp. Medium Treads | x2 | -6/Factory Hyp. Coil Gun | x2 | -6/Factory B-48 Gladiator | x3 | -5/Factory Imp. Heavy Siege Treads | x1 | -5/Factory Imp. Heavy Siege Treads | x1 | -5/Factory B-48 Gladiator | x3 | -5/Factory Cold Fusion Reactor | x1 | -5/Factory Cold Fusion Reactor | x1 | -5/Factory Enh. Coil Gun | x1 | -5/Factory B-48 Gladiator | x3 | -5/Factory B-48 Gladiator | x3 | -5/Factory B-48 Gladiator | x3 | -5/Factory Cmb. Linear Gravjet | x2 | -3/Research | Preloaded B-48 Gladiator | x3 | -3/Research Alien Tech Used ----------------- None Achievements -------------- None Challenges ------------ Devolution Game ------ Seed DisposableTacticalHammer Manual? 0 Play Time 04:19:04 Cumulative 535.5 hours Start 2024.11.03 @ 21:04:34 End 2024.11.04 @ 19:50:08 Sessions 3 Manual Loads 0 Difficulty Explorer Special Mode None Game No. 80 Rogue 6 Adventurer 6 Explorer 68 Win Type - Total 36 Types 13/7/2/5/1/1/1/4/2 Lore% 86 Gallery% 86 Achievement% 90 Wizard Run 0 Options --------- Layout 1 ASCII 0 Keyboard 0 Movement Mouse Keybinds 0 Fullscreen 1 Font 24/Smallcaps Map View 50x35 Zoom Use 0% Tactical HUD 1 Map Filters NONE Filters NONE Steam 1 RUN: a5b47aa1-8449-42c5-b9ee-5d70cdf75af9